[Event "*** Titled Tuesday Blitz"]
[Site "Chess.com"]
[Date "2020.12.01"]
[Round "4"]
[White "Alindsay211"]
[Black "Tsyhanchuk_Stanislav"]
[Result "0-1"]
[WhiteElo "2407"]
[BlackElo "2239"]
[TimeControl "180+1"]
[EndTime "10:39:29 PST"]
[Termination "Tsyhanchuk_Stanislav won on time"]

1. e4 {[%clk 0:03:00.9]} 1... c6 {[%clk 0:02:58.4]} 2. d4 {[%clk 0:02:58]} 2...
d5 {[%clk 0:02:59.3]} 3. Nc3 {[%clk 0:02:56.9]} 3... dxe4 {[%clk 0:02:58.3]} 4.
Nxe4 {[%clk 0:02:57.8]} 4... Bf5 {[%clk 0:02:58]} 5. Ng3 {[%clk 0:02:57.2]} 5...
Bg6 {[%clk 0:02:58.2]} 6. h4 {[%clk 0:02:53.4]} 6... h6 {[%clk 0:02:58.3]} 7.
Nf3 {[%clk 0:02:51.1]} 7... Nd7 {[%clk 0:02:57.7]} 8. h5 {[%clk 0:02:48.9]} 8...
Bh7 {[%clk 0:02:58.2]} 9. Bd3 {[%clk 0:02:48.9]} 9... Bxd3 {[%clk 0:02:58.7]}
10. Qxd3 {[%clk 0:02:49.8]} 10... e6 {[%clk 0:02:59.3]} 11. Bf4 {[%clk
0:02:45.7]} 11... Qa5+ {[%clk 0:02:59]} 12. c3 {[%clk 0:02:40.4]} 12... Ngf6
{[%clk 0:02:56.9]} 13. Nd2 {[%clk 0:02:04.9]} 13... Be7 {[%clk 0:02:52.1]} 14.
Nc4 {[%clk 0:01:56.8]} 14... Qd8 {[%clk 0:02:38.8]} 15. O-O-O {[%clk 0:01:48.9]}
15... Nb6 {[%clk 0:02:35.1]} 16. Ne5 {[%clk 0:01:39.5]} 16... Nbd5 {[%clk
0:02:25.8]} 17. Be3 {[%clk 0:01:23.9]} 17... Bd6 {[%clk 0:02:24.4]} 18. Rh3
{[%clk 0:00:52.3]} 18... Qc7 {[%clk 0:02:14.8]} 19. f4 {[%clk 0:00:31.8]} 19...
Nxe3 {[%clk 0:02:03.8]} 20. Qxe3 {[%clk 0:00:30.2]} 20... O-O-O {[%clk
0:02:04.2]} 21. Ne4 {[%clk 0:00:27.3]} 21... Nxe4 {[%clk 0:02:01.4]} 22. Qxe4
{[%clk 0:00:26]} 22... c5 {[%clk 0:01:50.8]} 23. Rg3 {[%clk 0:00:24.7]} 23...
cxd4 {[%clk 0:01:43.7]} 24. Rxd4 {[%clk 0:00:24]} 24... Kb8 {[%clk 0:01:25.5]}
25. Rxg7 {[%clk 0:00:20.6]} 25... Bxe5 {[%clk 0:01:15.2]} 26. Qxe5 {[%clk
0:00:17.7]} 26... Qxe5 {[%clk 0:00:56.3]} 27. fxe5 {[%clk 0:00:18.6]} 27... Rxd4
{[%clk 0:00:50]} 28. cxd4 {[%clk 0:00:19.5]} 28... Rf8 {[%clk 0:00:44.8]} 29.
Rh7 {[%clk 0:00:17.1]} 29... Kc7 {[%clk 0:00:24.4]} 30. Rxh6 {[%clk 0:00:16.6]}
30... Kc6 {[%clk 0:00:24.9]} 31. Kd2 {[%clk 0:00:12.8]} 31... Kd5 {[%clk
0:00:25.1]} 32. Ke3 {[%clk 0:00:11.8]} 32... Rg8 {[%clk 0:00:24.9]} 33. Rf6
{[%clk 0:00:11.7]} 33... Rxg2 {[%clk 0:00:23.9]} 34. Rxf7 {[%clk 0:00:08.1]}
34... Rxb2 {[%clk 0:00:22.8]} 35. Rd7+ {[%clk 0:00:06.3]} 35... Kc6 {[%clk
0:00:21.1]} 36. Rd6+ {[%clk 0:00:06.5]} 36... Kc7 {[%clk 0:00:21.7]} 37. Rxe6
{[%clk 0:00:06.1]} 37... Rxa2 {[%clk 0:00:22.3]} 38. Rg6 {[%clk 0:00:04.2]}
38... Rh2 {[%clk 0:00:21.8]} 39. h6 {[%clk 0:00:04.1]} 39... a5 {[%clk
0:00:21.8]} 40. Rg7+ {[%clk 0:00:04.1]} 40... Kc6 {[%clk 0:00:14.1]} 41. Ke4
{[%clk 0:00:03.7]} 41... a4 {[%clk 0:00:14.3]} 42. d5+ {[%clk 0:00:04.1]} 42...
Kc5 {[%clk 0:00:14]} 43. Rc7+ {[%clk 0:00:02.3]} 43... Kb6 {[%clk 0:00:13.5]}
44. Rf7 {[%clk 0:00:01.9]} 44... a3 {[%clk 0:00:13.6]} 45. h7 {[%clk 0:00:01.2]}
45... a2 {[%clk 0:00:12.1]} 46. Rf5 {[%clk 0:00:01.6]} 46... a1=Q {[%clk
0:00:09.1]} 47. e6 {[%clk 0:00:02]} 47... Rh4+ {[%clk 0:00:06.1]} 48. Rf4 {[%clk
0:00:01.8]} 48... Rxf4+ {[%clk 0:00:05.4]} 49. Kxf4 {[%clk 0:00:02.7]} 49... Qg7
{[%clk 0:00:05.4]} 50. d6 {[%clk 0:00:02.5]} 50... Kc6 {[%clk 0:00:05.2]} 51. e7
{[%clk 0:00:02.7]} 51... Kd7 {[%clk 0:00:04.6]} 52. Kf5 {[%clk 0:00:01.9]} 52...
Qxh7+ {[%clk 0:00:04.6]} 0-1

[Event "*** Titled Tuesday Blitz"]
[Site "Chess.com"]
[Date "2020.12.01"]
[Round "4"]
[White "2346PL"]
[Black "LaPorfia"]
[Result "0-1"]
[WhiteElo "2446"]
[BlackElo "2313"]
[TimeControl "180+1"]
[EndTime "10:39:30 PST"]
[Termination "LaPorfia won by resignation"]

1. d4 {[%clk 0:03:00.8]} 1... Nf6 {[%clk 0:02:59.4]} 2. Nc3 {[%clk 0:03:01.7]}
2... d5 {[%clk 0:02:56]} 3. Bf4 {[%clk 0:03:01.9]} 3... c6 {[%clk 0:02:54.4]} 4.
e3 {[%clk 0:03:01.5]} 4... Bf5 {[%clk 0:02:54.1]} 5. f3 {[%clk 0:03:01]} 5... e6
{[%clk 0:02:52.6]} 6. g4 {[%clk 0:03:00.6]} 6... Bg6 {[%clk 0:02:52.1]} 7. h4
{[%clk 0:03:01.2]} 7... h5 {[%clk 0:02:51.5]} 8. g5 {[%clk 0:03:01.3]} 8... Nfd7
{[%clk 0:02:50.5]} 9. Bd3 {[%clk 0:03:01.8]} 9... Bxd3 {[%clk 0:02:49.8]} 10.
cxd3 {[%clk 0:03:00.4]} 10... g6 {[%clk 0:02:49.8]} 11. Nge2 {[%clk 0:02:52.4]}
11... c5 {[%clk 0:02:48.7]} 12. dxc5 {[%clk 0:02:50.9]} 12... Bxc5 {[%clk
0:02:46.2]} 13. d4 {[%clk 0:02:45.8]} 13... Be7 {[%clk 0:02:37.9]} 14. Nb5
{[%clk 0:02:44.2]} 14... Na6 {[%clk 0:02:37.3]} 15. Kf2 {[%clk 0:02:30.7]} 15...
O-O {[%clk 0:02:34.6]} 16. a3 {[%clk 0:02:28.4]} 16... Nb6 {[%clk 0:02:19.7]}
17. b3 {[%clk 0:02:27.1]} 17... Qd7 {[%clk 0:02:11.1]} 18. Qd3 {[%clk
0:02:26.5]} 18... Nc8 {[%clk 0:02:01.3]} 19. Be5 {[%clk 0:02:20.8]} 19... Nd6
{[%clk 0:02:00.1]} 20. Nxd6 {[%clk 0:02:06]} 20... Bxd6 {[%clk 0:02:01]} 21. f4
{[%clk 0:02:00.8]} 21... Rac8 {[%clk 0:01:58.5]} 22. b4 {[%clk 0:01:48.9]} 22...
Rc4 {[%clk 0:01:49.1]} 23. Rac1 {[%clk 0:01:32.5]} 23... Rfc8 {[%clk 0:01:48]}
24. Rxc4 {[%clk 0:01:32.5]} 24... Rxc4 {[%clk 0:01:48.9]} 25. Rc1 {[%clk
0:01:30.1]} 25... b5 {[%clk 0:01:17.5]} 26. Ke1 {[%clk 0:01:15.3]} 26... Bxe5
{[%clk 0:01:15.7]} 27. fxe5 {[%clk 0:01:14.7]} 27... Rxc1+ {[%clk 0:01:15.7]}
28. Nxc1 {[%clk 0:01:14.2]} 28... Qc6 {[%clk 0:01:15.9]} 29. Kd2 {[%clk
0:01:12.8]} 29... Qc4 {[%clk 0:01:09.8]} 30. Nb3 {[%clk 0:01:11]} 30... Nb8
{[%clk 0:01:01.4]} 31. Na5 {[%clk 0:01:01]} 31... Qa2+ {[%clk 0:00:59.7]} 32.
Qc2 {[%clk 0:01:00.8]} 32... Qxc2+ {[%clk 0:00:56]} 33. Kxc2 {[%clk 0:01:00.7]}
33... Kf8 {[%clk 0:00:53.6]} 34. Kb3 {[%clk 0:00:56.6]} 34... Ke7 {[%clk
0:00:53.6]} 35. a4 {[%clk 0:00:55.6]} 35... a6 {[%clk 0:00:52.6]} 36. Ka3 {[%clk
0:00:52.5]} 36... Kd7 {[%clk 0:00:52.2]} 37. Nb7 {[%clk 0:00:52.5]} 37... Kc7
{[%clk 0:00:49.4]} 38. Nd6 {[%clk 0:00:51.8]} 38... Nc6 {[%clk 0:00:44.9]} 39.
Nxf7 {[%clk 0:00:49.8]} 39... Ne7 {[%clk 0:00:45.5]} 40. a5 {[%clk 0:00:40.6]}
40... Nf5 {[%clk 0:00:44]} 41. Nd6 {[%clk 0:00:18.7]} 41... Nxh4 {[%clk
0:00:40.3]} 42. e4 {[%clk 0:00:19]} 42... dxe4 {[%clk 0:00:39.4]} 43. Nxe4
{[%clk 0:00:19.8]} 43... Nf5 {[%clk 0:00:40]} 44. Nc5 {[%clk 0:00:17.5]} 44...
Nxd4 {[%clk 0:00:38.8]} 45. Nxa6+ {[%clk 0:00:17.3]} 45... Kc6 {[%clk
0:00:31.2]} 46. Nb8+ {[%clk 0:00:16.8]} 46... Kb7 {[%clk 0:00:30]} 47. Nd7
{[%clk 0:00:16.4]} 47... h4 {[%clk 0:00:29.9]} 48. Nc5+ {[%clk 0:00:15.4]} 48...
Ka7 {[%clk 0:00:28.6]} 49. Ne4 {[%clk 0:00:14.9]} 49... h3 {[%clk 0:00:29]} 50.
Nf2 {[%clk 0:00:14.4]} 50... h2 {[%clk 0:00:29]} 51. Kb2 {[%clk 0:00:15]} 51...
Nf3 {[%clk 0:00:28.8]} 52. Nh1 {[%clk 0:00:14.3]} 52... Nxg5 {[%clk 0:00:28]}
53. Kc3 {[%clk 0:00:15.2]} 53... Nf3 {[%clk 0:00:28.7]} 54. Kd3 {[%clk
0:00:14.9]} 54... Nxe5+ {[%clk 0:00:29.2]} 55. Ke4 {[%clk 0:00:15.8]} 55... Nc4
{[%clk 0:00:26.5]} 56. Kd4 {[%clk 0:00:15.1]} 56... e5+ {[%clk 0:00:26.1]} 57.
Kc5 {[%clk 0:00:14.8]} 57... Ka6 {[%clk 0:00:25.3]} 58. Kd5 {[%clk 0:00:14.7]}
58... g5 {[%clk 0:00:25.7]} 59. Ke4 {[%clk 0:00:14.7]} 59... g4 {[%clk
0:00:25.2]} 60. Kf5 {[%clk 0:00:14.7]} 60... Nxa5 {[%clk 0:00:22.5]} 61. bxa5
{[%clk 0:00:13.8]} 61... Kxa5 {[%clk 0:00:23.4]} 62. Kxg4 {[%clk 0:00:08.9]}
62... b4 {[%clk 0:00:23.5]} 63. Kg3 {[%clk 0:00:06.8]} 63... b3 {[%clk
0:00:23.7]} 64. Kxh2 {[%clk 0:00:05.6]} 64... b2 {[%clk 0:00:24]} 65. Nf2 {[%clk
0:00:06.2]} 65... b1=Q {[%clk 0:00:23.9]} 0-1

[Event "*** Titled Tuesday Blitz"]
[Site "Chess.com"]
[Date "2020.12.01"]
[Round "4"]
[White "Micki-taryan"]
[Black "DenLaz"]
[Result "1/2-1/2"]
[WhiteElo "3008"]
[BlackElo "2799"]
[TimeControl "180+1"]
[EndTime "10:39:32 PST"]
[Termination "Game drawn by repetition"]

1. Nf3 {[%clk 0:03:00.9]} 1... d5 {[%clk 0:02:59.6]} 2. d3 {[%clk 0:02:59.4]}
2... Nf6 {[%clk 0:02:59.3]} 3. g3 {[%clk 0:02:59]} 3... c6 {[%clk 0:02:59]} 4.
Bg2 {[%clk 0:02:59]} 4... Bf5 {[%clk 0:02:59.6]} 5. O-O {[%clk 0:02:58.8]} 5...
e6 {[%clk 0:02:59.8]} 6. Nbd2 {[%clk 0:02:58.2]} 6... h6 {[%clk 0:02:56.5]} 7.
b3 {[%clk 0:02:55.9]} 7... Be7 {[%clk 0:02:54.9]} 8. Bb2 {[%clk 0:02:56.3]} 8...
O-O {[%clk 0:02:53.8]} 9. Qe1 {[%clk 0:02:55.4]} 9... Bh7 {[%clk 0:02:51.5]} 10.
e4 {[%clk 0:02:53]} 10... a5 {[%clk 0:02:52.1]} 11. a3 {[%clk 0:02:52.6]} 11...
c5 {[%clk 0:02:51.5]} 12. Ne5 {[%clk 0:02:44.4]} 12... Nc6 {[%clk 0:02:48.6]}
13. Nxc6 {[%clk 0:02:27.9]} 13... bxc6 {[%clk 0:02:49.5]} 14. a4 {[%clk
0:02:27.4]} 14... Nd7 {[%clk 0:02:46.4]} 15. Qe2 {[%clk 0:02:20.9]} 15... Bf6
{[%clk 0:02:45]} 16. e5 {[%clk 0:02:16.3]} 16... Be7 {[%clk 0:02:42.8]} 17. f4
{[%clk 0:02:16.6]} 17... Qb6 {[%clk 0:02:23.3]} 18. c4 {[%clk 0:01:57.7]} 18...
dxc4 {[%clk 0:02:04.6]} 19. dxc4 {[%clk 0:01:43]} 19... Rfd8 {[%clk 0:02:02.4]}
20. Bc3 {[%clk 0:01:42.1]} 20... Nf8 {[%clk 0:01:57.2]} 21. Be4 {[%clk
0:01:41.3]} 21... Rd7 {[%clk 0:01:36.2]} 22. Bxh7+ {[%clk 0:01:39.7]} 22... Nxh7
{[%clk 0:01:32.5]} 23. Ne4 {[%clk 0:01:35.7]} 23... Rad8 {[%clk 0:01:29.6]} 24.
Rf3 {[%clk 0:01:24.8]} 24... Rb8 {[%clk 0:01:01.8]} 25. Be1 {[%clk 0:01:22.6]}
25... Re8 {[%clk 0:00:52.5]} 26. Rd1 {[%clk 0:01:19.9]} 26... Rxd1 {[%clk
0:00:48]} 27. Qxd1 {[%clk 0:01:20.8]} 27... f5 {[%clk 0:00:48]} 28. Nd6 {[%clk
0:01:12.9]} 28... Rd8 {[%clk 0:00:35.6]} 29. Rd3 {[%clk 0:01:11.8]} 29... Nf8
{[%clk 0:00:35.1]} 30. Qd2 {[%clk 0:01:03.1]} 30... Ra8 {[%clk 0:00:22.9]} 31.
h4 {[%clk 0:01:03.4]} 31... Bxd6 {[%clk 0:00:22.4]} 32. exd6 {[%clk 0:01:02.9]}
32... Nd7 {[%clk 0:00:22.6]} 33. Re3 {[%clk 0:01:01.8]} 33... Kf7 {[%clk
0:00:22.3]} 34. g4 {[%clk 0:00:53.7]} 34... fxg4 {[%clk 0:00:21.7]} 35. f5
{[%clk 0:00:54.6]} 35... e5 {[%clk 0:00:20.6]} 36. Qe2 {[%clk 0:00:54.9]} 36...
h5 {[%clk 0:00:20.1]} 37. Bc3 {[%clk 0:00:51.7]} 37... Re8 {[%clk 0:00:18.6]}
38. Bxe5 {[%clk 0:00:50.1]} 38... Qd8 {[%clk 0:00:18.7]} 39. Bg3 {[%clk
0:00:32.2]} 39... Rxe3 {[%clk 0:00:18.5]} 40. Qxe3 {[%clk 0:00:33.1]} 40... Qf6
{[%clk 0:00:18.8]} 41. Qg5 {[%clk 0:00:14.8]} 41... Qd4+ {[%clk 0:00:19]} 42.
Bf2 {[%clk 0:00:13.5]} 42... Qd1+ {[%clk 0:00:15]} 43. Kg2 {[%clk 0:00:13.6]}
43... Qf3+ {[%clk 0:00:13.2]} 44. Kg1 {[%clk 0:00:13.6]} 44... Qd1+ {[%clk
0:00:13.5]} 45. Kg2 {[%clk 0:00:12.4]} 45... Nf6 {[%clk 0:00:09.3]} 46. Qf4
{[%clk 0:00:09.8]} 46... Qxb3 {[%clk 0:00:08.5]} 47. Qe5 {[%clk 0:00:08.3]}
47... Qd3 {[%clk 0:00:07.6]} 48. Qe6+ {[%clk 0:00:07.5]} 48... Kf8 {[%clk
0:00:08]} 49. Bxc5 {[%clk 0:00:05.4]} 49... Qd2+ {[%clk 0:00:08.5]} 50. Kf1
{[%clk 0:00:05.1]} 50... Qd3+ {[%clk 0:00:08.6]} 51. Kg2 {[%clk 0:00:04.9]}
51... Qd2+ {[%clk 0:00:08.1]} 52. Kf1 {[%clk 0:00:05.2]} 52... Qd3+ {[%clk
0:00:07.8]} 53. Ke1 {[%clk 0:00:05.1]} 53... Qc3+ {[%clk 0:00:07.9]} 54. Kd1
{[%clk 0:00:05.1]} 54... Qd3+ {[%clk 0:00:08.1]} 55. Ke1 {[%clk 0:00:04.8]}
55... Qc3+ {[%clk 0:00:08.3]} 56. Ke2 {[%clk 0:00:05.7]} 56... Qc2+ {[%clk
0:00:08]} 57. Kf1 {[%clk 0:00:04]} 57... Qd3+ {[%clk 0:00:07.1]} 1/2-1/2

[Event "*** Titled Tuesday Blitz"]
[Site "Chess.com"]
[Date "2020.12.01"]
[Round "4"]
[White "gilbert_gm"]
[Black "Zhigalko_Sergei"]
[Result "1-0"]
[WhiteElo "2561"]
[BlackElo "2861"]
[TimeControl "180+1"]
[EndTime "10:39:32 PST"]
[Termination "gilbert_gm won on time"]

1. d4 {[%clk 0:03:00]} 1... Nf6 {[%clk 0:02:59.5]} 2. Nf3 {[%clk 0:02:59.7]}
2... e6 {[%clk 0:02:59.8]} 3. Bf4 {[%clk 0:02:59.9]} 3... d5 {[%clk 0:02:59.8]}
4. Nbd2 {[%clk 0:03:00.2]} 4... Bd6 {[%clk 0:03:00]} 5. e3 {[%clk 0:03:00.2]}
5... O-O {[%clk 0:02:59.9]} 6. Bd3 {[%clk 0:03:00.3]} 6... b6 {[%clk 0:02:59.7]}
7. Qe2 {[%clk 0:02:58]} 7... Bb7 {[%clk 0:02:59.2]} 8. O-O {[%clk 0:02:55.4]}
8... c5 {[%clk 0:02:59.2]} 9. c3 {[%clk 0:02:54.6]} 9... Nc6 {[%clk 0:02:59.1]}
10. Ne5 {[%clk 0:02:52.1]} 10... Qc7 {[%clk 0:02:58.2]} 11. Ndf3 {[%clk
0:02:48.9]} 11... Ne7 {[%clk 0:02:35.3]} 12. Bg3 {[%clk 0:02:45.4]} 12... Ne4
{[%clk 0:02:33.6]} 13. Bxe4 {[%clk 0:02:16.7]} 13... dxe4 {[%clk 0:02:33.4]} 14.
Nd2 {[%clk 0:02:17.2]} 14... Rac8 {[%clk 0:02:09.1]} 15. Rfc1 {[%clk 0:01:41.5]}
15... f6 {[%clk 0:02:04.9]} 16. Nec4 {[%clk 0:01:34.6]} 16... Bxg3 {[%clk
0:02:03]} 17. hxg3 {[%clk 0:01:35.5]} 17... Ba6 {[%clk 0:01:52.9]} 18. Qe1
{[%clk 0:01:23.6]} 18... Nd5 {[%clk 0:01:48.7]} 19. a4 {[%clk 0:01:06.3]} 19...
h5 {[%clk 0:01:18.3]} 20. Na3 {[%clk 0:01:02.4]} 20... Bd3 {[%clk 0:01:16.1]}
21. f3 {[%clk 0:00:50.5]} 21... Bc4 {[%clk 0:01:17]} 22. Naxc4 {[%clk
0:00:45.5]} 22... exf3 {[%clk 0:00:49.6]} 23. gxf3 {[%clk 0:00:46.4]} 23... Ne7
{[%clk 0:00:46.7]} 24. Kf2 {[%clk 0:00:42.3]} 24... Nf5 {[%clk 0:00:45.5]} 25.
Kg2 {[%clk 0:00:34.5]} 25... Rcd8 {[%clk 0:00:40.7]} 26. Qf2 {[%clk 0:00:33.8]}
26... g5 {[%clk 0:00:37.3]} 27. Rh1 {[%clk 0:00:32.8]} 27... h4 {[%clk
0:00:37.4]} 28. gxh4 {[%clk 0:00:29.1]} 28... cxd4 {[%clk 0:00:37.1]} 29. cxd4
{[%clk 0:00:20.3]} 29... e5 {[%clk 0:00:36.5]} 30. hxg5 {[%clk 0:00:16.9]} 30...
exd4 {[%clk 0:00:36.8]} 31. e4 {[%clk 0:00:17]} 31... Ne3+ {[%clk 0:00:24.7]}
32. Nxe3 {[%clk 0:00:17.2]} 32... dxe3 {[%clk 0:00:25.6]} 33. Qxe3 {[%clk
0:00:18.1]} 33... Qc2 {[%clk 0:00:26.1]} 34. Qb3+ {[%clk 0:00:18.5]} 34... Qxb3
{[%clk 0:00:24.5]} 35. Nxb3 {[%clk 0:00:19.4]} 35... Rd3 {[%clk 0:00:24.2]} 36.
Ra3 {[%clk 0:00:16.4]} 36... fxg5 {[%clk 0:00:24.2]} 37. Rf1 {[%clk 0:00:14.1]}
37... Rc8 {[%clk 0:00:15.9]} 38. Rf2 {[%clk 0:00:12.2]} 38... Rc4 {[%clk
0:00:12.1]} 39. Nd2 {[%clk 0:00:09.4]} 39... Rxa3 {[%clk 0:00:13]} 40. bxa3
{[%clk 0:00:10.3]} 40... Rxa4 {[%clk 0:00:13.6]} 41. Nb1 {[%clk 0:00:10.8]}
41... Rc4 {[%clk 0:00:12.2]} 42. Rb2 {[%clk 0:00:09.2]} 42... Kf7 {[%clk
0:00:10.9]} 43. Kf2 {[%clk 0:00:08.9]} 43... g4 {[%clk 0:00:09.6]} 44. Nd2
{[%clk 0:00:06.7]} 44... Rc3 {[%clk 0:00:09.5]} 45. fxg4 {[%clk 0:00:07.3]}
45... Rxa3 {[%clk 0:00:10.1]} 46. Nf3 {[%clk 0:00:07]} 46... Ke6 {[%clk
0:00:06.6]} 47. Kg3 {[%clk 0:00:06.8]} 47... Ra1 {[%clk 0:00:02.5]} 48. Kf4
{[%clk 0:00:07]} 48... Kd6 {[%clk 0:00:02.5]} 49. e5+ {[%clk 0:00:06.1]} 49...
Kd5 {[%clk 0:00:02.5]} 50. Rd2+ {[%clk 0:00:06.5]} 50... Ke6 {[%clk 0:00:02.4]}
51. Rd6+ {[%clk 0:00:06]} 51... Ke7 {[%clk 0:00:02.9]} 52. g5 {[%clk 0:00:06.5]}
52... b5 {[%clk 0:00:02]} 53. g6 {[%clk 0:00:06.4]} 53... a5 {[%clk 0:00:01.4]}
54. Ra6 {[%clk 0:00:06.5]} 1-0

[Event "*** Titled Tuesday Blitz"]
[Site "Chess.com"]
[Date "2020.12.01"]
[Round "4"]
[White "yobdc"]
[Black "fyall777"]
[Result "0-1"]
[WhiteElo "2484"]
[BlackElo "2289"]
[TimeControl "180+1"]
[EndTime "10:39:32 PST"]
[Termination "fyall777 won on time"]

1. d4 {[%clk 0:03:00.5]} 1... d6 {[%clk 0:02:58.3]} 2. Nf3 {[%clk 0:02:58.5]}
2... g6 {[%clk 0:02:57.7]} 3. g3 {[%clk 0:02:57.2]} 3... Bg7 {[%clk 0:02:57.8]}
4. Bg2 {[%clk 0:02:57.6]} 4... Nf6 {[%clk 0:02:58.2]} 5. O-O {[%clk 0:02:57.9]}
5... O-O {[%clk 0:02:58.5]} 6. b3 {[%clk 0:02:58.4]} 6... e5 {[%clk 0:02:57.7]}
7. dxe5 {[%clk 0:02:56.6]} 7... Ng4 {[%clk 0:02:57.8]} 8. Bb2 {[%clk 0:02:52.3]}
8... Nc6 {[%clk 0:02:57.3]} 9. Qc1 {[%clk 0:02:40.4]} 9... Ngxe5 {[%clk
0:02:56.7]} 10. Nbd2 {[%clk 0:02:32.2]} 10... Qe7 {[%clk 0:02:52.2]} 11. Re1
{[%clk 0:02:19]} 11... Bg4 {[%clk 0:02:36.8]} 12. h3 {[%clk 0:02:17.5]} 12...
Bd7 {[%clk 0:02:36.6]} 13. e4 {[%clk 0:02:11.5]} 13... Rae8 {[%clk 0:02:28.6]}
14. Nxe5 {[%clk 0:02:08.3]} 14... dxe5 {[%clk 0:02:25.3]} 15. Ba3 {[%clk
0:02:06.2]} 15... Qf6 {[%clk 0:02:06.8]} 16. Bxf8 {[%clk 0:02:05.3]} 16... Bxf8
{[%clk 0:02:07]} 17. c3 {[%clk 0:01:52.6]} 17... Bc5 {[%clk 0:02:05.7]} 18. Re2
{[%clk 0:01:51.5]} 18... h5 {[%clk 0:02:02.2]} 19. b4 {[%clk 0:01:51.1]} 19...
Bf8 {[%clk 0:01:56.9]} 20. Nf3 {[%clk 0:01:49.2]} 20... Bxh3 {[%clk 0:01:30.2]}
21. Qg5 {[%clk 0:01:42.7]} 21... Qxg5 {[%clk 0:01:28.6]} 22. Nxg5 {[%clk
0:01:42.7]} 22... Bg4 {[%clk 0:01:28.8]} 23. Nf3 {[%clk 0:01:26.9]} 23... f5
{[%clk 0:01:19.7]} 24. Rae1 {[%clk 0:01:22.2]} 24... f4 {[%clk 0:01:13.1]} 25.
Rd2 {[%clk 0:01:16]} 25... Bh6 {[%clk 0:01:11.6]} 26. Rd3 {[%clk 0:01:10.4]}
26... g5 {[%clk 0:01:11.4]} 27. a4 {[%clk 0:00:55]} 27... a6 {[%clk 0:00:58.1]}
28. b5 {[%clk 0:00:54.3]} 28... axb5 {[%clk 0:00:57.2]} 29. axb5 {[%clk
0:00:55.2]} 29... Na5 {[%clk 0:00:57]} 30. Red1 {[%clk 0:00:52.7]} 30... Bxf3
{[%clk 0:00:45.6]} 31. Bxf3 {[%clk 0:00:51.1]} 31... g4 {[%clk 0:00:45.5]} 32.
Be2 {[%clk 0:00:46.8]} 32... f3 {[%clk 0:00:44.6]} 33. Bf1 {[%clk 0:00:45.2]}
33... Kf7 {[%clk 0:00:40.8]} 34. Rd7+ {[%clk 0:00:43.8]} 34... Re7 {[%clk
0:00:41]} 35. R1d5 {[%clk 0:00:31.6]} 35... Bg7 {[%clk 0:00:40.2]} 36. c4 {[%clk
0:00:26.9]} 36... b6 {[%clk 0:00:38.8]} 37. Rd8 {[%clk 0:00:21.8]} 37... Nb7
{[%clk 0:00:36.6]} 38. Rb8 {[%clk 0:00:20.7]} 38... Nc5 {[%clk 0:00:36.7]} 39.
Rc8 {[%clk 0:00:19]} 39... Bf6 {[%clk 0:00:36.6]} 40. Ra8 {[%clk 0:00:14.8]}
40... Nxe4 {[%clk 0:00:36]} 41. Rdd8 {[%clk 0:00:13.4]} 41... Nc5 {[%clk
0:00:34]} 42. Rf8+ {[%clk 0:00:13.4]} 42... Ke6 {[%clk 0:00:33.4]} 43. Rad8
{[%clk 0:00:11.1]} 43... e4 {[%clk 0:00:33.5]} 44. Rg8 {[%clk 0:00:08.6]} 44...
Rd7 {[%clk 0:00:33.4]} 45. Rde8+ {[%clk 0:00:08.5]} 45... Kf7 {[%clk 0:00:32.7]}
46. Rgf8+ {[%clk 0:00:07.4]} 46... Kg6 {[%clk 0:00:32.9]} 47. Rg8+ {[%clk
0:00:07.7]} 47... Kf5 {[%clk 0:00:30.5]} 48. Rgf8 {[%clk 0:00:07.9]} 48... Kg6
{[%clk 0:00:29.5]} 49. Rg8+ {[%clk 0:00:07.7]} 49... Bg7 {[%clk 0:00:29.9]} 50.
Rc8 {[%clk 0:00:03.4]} 50... Kh7 {[%clk 0:00:26.9]} 51. Rge8 {[%clk 0:00:02.8]}
51... Bd4 {[%clk 0:00:26.7]} 52. Rg8 {[%clk 0:00:01.4]} 52... e3 {[%clk
0:00:26.2]} 53. fxe3 {[%clk 0:00:01.9]} 53... Bxe3+ {[%clk 0:00:26.4]} 54. Kh2
{[%clk 0:00:01.8]} 54... Rd2+ {[%clk 0:00:26.3]} 55. Kh1 {[%clk 0:00:01.8]}
55... Rd1 {[%clk 0:00:25.8]} 56. Rgd8 {[%clk 0:00:01.2]} 56... Rxf1+ {[%clk
0:00:24.8]} 57. Kh2 {[%clk 0:00:01.7]} 57... Rf2+ {[%clk 0:00:24.6]} 58. Kh1
{[%clk 0:00:02.2]} 58... Bg5 {[%clk 0:00:22.3]} 59. Rxc7+ {[%clk 0:00:02.3]}
59... Kg6 {[%clk 0:00:22.5]} 60. Rd6+ {[%clk 0:00:02.5]} 60... Bf6 {[%clk
0:00:22]} 61. Rcc6 {[%clk 0:00:02.4]} 61... Ne4 {[%clk 0:00:22.5]} 62. Re6
{[%clk 0:00:01.4]} 62... Nxg3+ {[%clk 0:00:22.6]} 0-1